bitfinex/quotes_ETHUSD_20240608
["timestamp","ask_amount","ask_price","bid_price","bid_amount"]
[1717853241085,3.0,3675.0,3674.5,3.078]
[1717853241416,3.0,3675.0,3674.7,0.728]
[1717853241573,3.0,3675.0,3674.8,1.39285466]
[1717853242072,3.0,3675.0,3674.9,0.22672362]
[1717853245380,3.0,3675.0,3674.5,0.728]
[1717853245611,3.0,3675.0,3674.0,5.48]
[1717853245612,2.72116,3674.9,3674.0,5.48]
[1717853245796,3.0,3674.8,3674.6,0.22672362]
[1717853245992,3.0,3674.8,3674.1,1.39285466]
[1717853246193,3.0,3674.8,3674.7,0.22672362]
[1717853246933,3.0,3675.2,3674.7,1.39285466]
[1717853247089,3.0,3675.2,3674.8,1.39285466]
[1717853247788,3.0,3675.2,3674.9,0.22672362]
[1717853249413,2.72101,3675.1,3674.9,0.22672362]
[1717853249631,3.0,3675.0,3674.9,0.22672362]
[1717853252747,3.0,3675.0,3674.9,2.34757828]
[1717853252888,3.0,3675.5,3674.9,2.89757828]
[1717853253222,3.0,3675.5,3675.1,0.728]
[1717853253423,3.0,3675.5,3675.2,1.39285466]
[1717853253950,3.0,3675.5,3675.3,0.22672362]
[1717853254147,3.0,3675.5,3675.4,1.39285466]
[1717853254508,3.0,3675.5,3675.4,1.61957828]
[1717853254749,3.0,3675.5,3675.4,0.22672362]
[1717853254962,3.572071,3675.5,3674.8,0.728]
[1717853255249,3.0,3675.5,3674.9,1.39285466]
[1717853255465,3.0,3675.5,3674.9,1.61957828]
[1717853256307,3.0,3675.5,3674.9,2.34757828]
[1717853257044,3.2167,3675.4,3674.9,0.22672362]
[1717853257361,3.5167,3675.4,3674.3,0.728]
[1717853257655,3.0,3675.3,3674.4,1.61957828]
[1717853258120,2.72107,3675.1,3674.4,2.34757828]
[1717853258443,3.0,3675.0,3674.4,2.34757828]
[1717853259307,0.728,3674.8,3674.4,0.22672362]
[1717853259504,2.72145,3674.5,3674.0,0.728]
[1717853259740,2.72145,3674.5,3674.1,1.39285466]
[1717853259741,3.0,3674.4,3674.1,1.39285466]
[1717853260060,3.0,3674.4,3674.1,1.61957828]
[1717853262337,3.0,3674.4,3674.1,0.22672362]
[1717853262543,3.0,3674.4,3673.8,0.728]
[1717853262873,3.0,3674.4,3673.9,0.22669695]
[1717853263451,3.0,3674.4,3674.0,0.728]
[1717853263872,3.0,3674.4,3674.1,1.39285466]
[1717853264076,3.0,3674.4,3674.1,1.61955161]
[1717853264772,3.0,3674.4,3674.1,0.22669695]
[1717853264970,3.0,3674.4,3673.6,2.4196]
[1717853264971,3.0,3674.4,3673.7,0.728]
[1717853265273,3.0,3674.4,3673.8,1.61955161]
[1717853265450,3.0,3674.4,3673.8,2.34755161]
[1717853267676,2.72162,3674.3,3673.8,0.22669695]
[1717853267855,3.0,3674.2,3673.8,0.22669695]
[1717853268048,3.0,3674.2,3673.7,0.728]
[1717853268257,3.0,3674.2,3673.9,0.22669695]
[1717853268477,3.0,3674.2,3673.7,0.728]
[1717853268643,3.0,3674.2,3674.0,0.22669695]
[1717853268950,3.0,3674.2,3674.1,0.22669695]
[1717853269156,3.0,3674.2,3673.8,0.728]
[1717853269338,3.0,3674.2,3673.9,0.22669695]
[1717853269540,2.72175,3674.1,3673.9,0.22669695]
[1717853269745,3.0,3674.0,3673.5,0.728]
[1717853269940,3.0,3674.0,3673.6,0.22669695]
[1717853272009,3.0,3674.0,3673.8,0.728]
[1717853272294,3.0,3674.5,3673.9,1.39285466]
[1717853272649,3.531104,3674.4,3674.0,0.22669695]
[1717853272874,2.72069,3675.6,3674.4,2.4196]
[1717853273078,2.72032,3676.1,3675.5,0.728]
[1717853273278,2.72032,3676.1,3675.9,0.728]
[1717853273647,2.72032,3676.1,3675.6,1.39285466]
[1717853273648,2.72032,3676.1,3675.7,0.728]
[1717853274174,2.72032,3676.1,3675.8,0.22669695]
[1717853274380,2.72032,3676.1,3675.7,0.728]
[1717853274590,2.72032,3676.1,3675.8,0.22669695]
[1717853274766,2.72032,3676.1,3675.7,0.728]
[1717853274966,2.72032,3676.1,3675.8,0.22669695]
[1717853275166,2.72032,3676.1,3675.7,0.728]
[1717853275592,2.72032,3676.1,3675.8,0.22669695]
[1717853275794,2.72032,3676.1,3675.7,0.728]
[1717853275966,3.0,3676.0,3675.8,0.22669695]
[1717853276172,3.0,3676.0,3675.6,1.39285466]
[1717853276492,3.0,3676.0,3675.7,0.22669695]
[1717853277077,3.0,3676.0,3675.8,1.39285466]
[1717853277249,3.0,3676.5,3675.8,1.39285466]
[1717853277447,3.509394,3676.5,3675.8,1.39285466]
[1717853277678,3.509394,3676.5,3675.9,0.22669695]
[1717853277862,3.509394,3676.5,3675.8,1.39285466]
[1717853278059,2.71994,3676.6,3676.0,0.22669695]
[1717853278261,5.09358,3677.1,3676.1,1.39285466]
[1717853278489,5.09358,3677.1,3676.1,1.61955161]
[1717853279049,2.71958,3677.1,3676.1,1.61955161]
[1717853279497,2.71958,3677.1,3676.2,2.3389]
[1717853279705,2.71958,3677.1,3676.3,1.39285466]
[1717853279997,2.71958,3677.1,3676.4,0.22669695]
[1717853280165,0.03282063,3677.0,3676.4,0.22669695]
[1717853280369,0.03282063,3677.0,3675.5,2.72068]
[1717853280370,2.71979,3676.8,3675.5,2.72068]
[1717853280573,0.03282063,3676.7,3675.6,1.61955161]
[1717853281093,2.71979,3676.8,3675.6,1.61955161]
[1717853281554,3.0,3676.7,3675.6,1.61955161]
[1717853281760,3.0,3676.7,3675.7,0.55]
[1717853281999,3.0,3676.7,3675.8,4.11331466]
[1717853282205,3.0,3677.2,3676.1,2.72026]
[1717853282470,3.0,3677.2,3676.2,1.39285466]
[1717853282701,3.0,3677.2,3676.2,1.61955161]
[1717853283228,2.71903,3677.8,3676.3,4.46511]
[1717853283500,2.71903,3677.8,3676.4,1.39285466]
[1717853283855,2.71903,3677.8,3676.5,0.22669695]
[1717853284152,2.71903,3677.8,3676.6,1.39285466]
[1717853284389,2.71903,3677.8,3676.7,4.46482]
[1717853284592,2.71903,3677.8,3676.8,1.61955161]
[1717853284982,2.71867,3678.3,3676.9,4.66253466]
[1717853285167,2.96407,3678.3,3676.9,4.66253466]
[1717853285366,2.96407,3678.3,3677.0,0.22669695]
[1717853285561,2.96407,3678.3,3677.1,1.39285466]
[1717853285759,2.71884,3678.1,3677.1,1.39285466]
[1717853286001,2.71884,3678.1,3677.2,0.22669695]
[1717853286157,2.71884,3678.1,3677.3,1.39285466]
[1717853286656,2.71884,3678.1,3677.4,0.22669695]
[1717853286860,3.0,3678.0,3677.4,1.61955161]
[1717853287097,0.571884,3677.9,3677.4,1.61955161]
[1717853289812,2.71903,3677.8,3677.4,0.22669695]
[1717853289979,3.0,3677.7,3676.7,2.3389]
[1717853290318,3.0,3677.7,3676.8,1.61955161]
[1717853290822,3.6290914,3677.7,3676.8,1.61955161]
[1717853291020,2.71925,3677.5,3676.8,1.61955161]
[1717853291223,3.03282063,3677.4,3676.8,1.61955161]
[1717853291440,3.0,3677.4,3676.8,1.61955161]
[1717853293403,2.71944,3677.3,3676.8,0.22669695]
[1717853293603,2.71953,3677.1,3676.0,1.745]
[1717853293803,3.0,3677.0,3676.9,0.22669695]
[1717853294003,3.0,3677.0,3676.1,1.39285466]
[1717853294201,3.0,3677.0,3676.9,0.22669695]
[1717853294519,3.0,3677.0,3676.1,1.39285466]
[1717853294713,2.71969,3676.9,3676.1,1.39285466]
[1717853294919,2.71969,3676.9,3676.2,0.22669695]
[1717853295130,3.0,3676.8,3676.3,1.39285466]
[1717853295632,3.0,3676.8,3676.4,0.22669695]
[1717853298715,2.71984,3676.7,3676.4,0.22669695]
[1717853298936,2.71997,3676.5,3676.4,0.22669695]
[1717853299233,5.71997,3676.5,3675.4,5.1189]
[1717853300134,3.0,3676.4,3675.5,1.61955161]
[1717853302493,2.72013,3676.3,3675.5,1.61955161]
[1717853302698,3.0,3676.2,3675.5,1.61955161]
[1717853305138,3.0,3676.2,3675.8,0.0008]
[1717853305342,3.0,3676.2,3675.8,1.39365466]
[1717853305849,3.0,3676.2,3675.9,0.22669695]
[1717853306336,3.0,3676.2,3675.8,1.39365466]
[1717853306510,3.0,3676.2,3676.0,0.22669695]
[1717853306904,3.0,3676.2,3675.8,1.39365466]
[1717853307123,3.0,3676.2,3676.1,0.22669695]
[1717853307296,3.0,3676.2,3675.8,1.39365466]
[1717853307502,3.0,3676.2,3676.1,0.22669695]
[1717853307720,3.0,3676.2,3675.8,1.39365466]
[1717853307899,3.0,3676.2,3676.1,0.22669695]
[1717853308094,3.0,3676.2,3675.8,1.39365466]
[1717853308299,3.0,3676.2,3676.1,0.22669695]
[1717853308500,3.0,3676.2,3675.8,1.39365466]
[1717853308738,3.0,3676.2,3676.1,0.22669695]
[1717853309195,3.0,3676.2,3675.9,1.39285466]
[1717853309400,3.0,3676.2,3676.1,0.22669695]
[1717853309601,3.0,3676.2,3675.9,1.39285466]
[1717853309803,3.0,3676.2,3676.1,0.22669695]
[1717853310035,3.0,3676.2,3675.9,1.39285466]
[1717853310216,3.0,3676.2,3676.1,0.22669695]
[1717853310399,3.0,3676.2,3675.9,1.39285466]
[1717853310605,3.0,3676.2,3676.1,0.22669695]
[1717853310841,3.0,3676.2,3675.9,1.39285466]
[1717853311058,3.0,3676.2,3676.1,0.22669695]
[1717853311267,3.0,3676.2,3675.9,1.39285466]
[1717853311410,3.0,3676.2,3676.1,0.22669695]
[1717853311612,3.0,3676.2,3675.9,1.39285466]
[1717853311921,3.0,3676.2,3676.1,0.22669695]
[1717853312128,3.0,3676.2,3676.0,0.727]
[1717853312664,3.0,3676.2,3676.1,0.22669695]
[1717853313104,3.0,3676.2,3676.0,0.727]
[1717853313420,3.0,3676.2,3676.1,0.22669695]
[1717853313741,3.0,3676.2,3676.0,0.727]
[1717853314100,3.0,3676.2,3676.1,0.22669695]
[1717853314500,3.0,3676.2,3676.0,0.727]
[1717853314911,3.0,3676.2,3676.1,0.22669695]
[1717853315338,3.0,3676.2,3676.0,0.727]
[1717853315742,3.0,3676.2,3676.1,0.22669695]
[1717853316129,3.0,3676.2,3676.0,0.727]
[1717853316455,3.0,3676.2,3676.1,0.22669695]
[1717853316863,3.0,3676.2,3676.0,0.727]
[1717853317233,3.0,3676.2,3676.1,0.22669695]
[1717853317548,3.0,3676.2,3676.1,0.727]
[1717853321158,3.0,3676.2,3676.0,0.727]
[1717853321360,3.0,3676.2,3676.1,0.22669695]
[1717853321882,3.0,3676.2,3676.0,0.727]
[1717853322280,3.0,3676.2,3676.1,0.22669695]
[1717853322629,3.0,3676.2,3676.0,0.727]
[1717853322867,3.0,3676.2,3676.1,0.22669695]
[1717853323233,3.0,3676.2,3676.0,0.727]
[1717853323434,3.0,3676.2,3676.1,0.22669695]
[1717853323628,3.0,3676.2,3675.8,0.0008]
[1717853323629,3.0,3676.2,3676.0,0.727]
[1717853323867,3.0,3676.2,3676.1,0.22669695]
[1717853324260,3.0,3676.2,3676.0,0.727]
[1717853324568,3.0,3676.2,3676.1,0.22669695]
[1717853324781,3.0,3676.2,3676.0,0.727]
[1717853325067,3.0,3676.2,3676.1,0.22669695]
[1717853325432,3.0,3676.2,3676.0,0.727]
[1717853325633,3.0,3676.2,3676.1,0.22669695]
[1717853325851,3.0,3676.2,3676.0,0.727]
[1717853326172,3.0,3676.2,3676.1,0.22669695]
[1717853326369,3.0,3676.2,3676.0,0.727]
[1717853326533,3.0,3676.2,3676.1,0.22669695]
[1717853326735,3.0,3676.2,3676.0,0.727]
[1717853326940,3.0,3676.2,3676.1,0.22669695]
[1717853327169,3.0,3676.2,3676.0,0.727]
[1717853327655,3.0,3676.2,3676.1,0.22669695]
[1717853327834,3.0,3676.2,3676.0,0.727]
[1717853328035,3.0,3676.2,3676.1,0.22669695]
[1717853328235,3.0,3676.2,3675.8,0.7278]
[1717853328437,3.0,3676.2,3676.1,0.22669695]
[1717853328671,3.0,3676.2,3675.9,1.39285466]
[1717853328833,3.0,3676.2,3676.1,0.22669695]
[1717853329033,3.0,3676.2,3675.9,1.39285466]
[1717853329257,3.0,3676.2,3676.1,0.22669695]
[1717853329449,3.0,3676.2,3675.9,1.39285466]
[1717853329679,3.0,3676.2,3676.1,0.22669695]
[1717853330278,3.0,3676.2,3675.9,1.39285466]
[1717853330474,3.0,3676.2,3676.1,0.22669695]
[1717853330681,3.0,3676.2,3675.9,1.39285466]
[1717853331278,3.0,3676.2,3676.0,0.22669695]
[1717853332072,3.0,3676.2,3676.0,0.95369695]
[1717853341389,2.72027,3676.1,3676.0,0.22669695]
[1717853341592,5.72027,3676.1,3676.0,0.22669695]
[1717853341792,5.72027,3676.1,3675.8,0.0008]
[1717853342000,5.72027,3676.1,3676.0,0.22669695]
[1717853342175,5.72027,3676.1,3675.8,0.0008]
[1717853342373,3.0,3676.0,3675.9,0.22669695]
[1717853342686,3.0,3676.0,3675.9,0.727]
[1717853343005,3.0,3676.0,3675.9,2.34655161]
[1717853343294,2.72,3676.5,3675.9,2.34655161]
[1717853343505,3.0,3676.4,3675.9,2.34655161]
[1717853344177,3.5881018,3676.4,3675.9,2.34655161]
[1717853344395,3.0,3676.4,3675.9,2.34655161]
[1717853345526,2.72013,3676.3,3675.9,1.61955161]
[1717853345819,2.72027,3676.1,3675.9,0.22669695]
[1717853345989,2.72027,3676.1,3675.8,0.7278]
[1717853346190,3.0,3676.0,3675.8,0.7278]
[1717853347322,3.0,3676.0,3675.8,0.0008]
[1717853347624,3.0,3676.0,3675.8,0.7278]
[1717853352126,3.0,3676.0,3675.8,0.0008]
[1717853357474,3.0,3676.0,3675.9,0.22669695]
[1717853357643,3.0,3676.0,3675.8,0.0008]
[1717853358167,3.0,3676.0,3675.9,0.22669695]
[1717853358362,3.572027,3676.0,3675.9,0.22669695]
[1717853358575,2.72042,3675.9,3675.8,0.0008]
[1717853358729,5.72042,3675.9,3675.8,0.0008]
[1717853361330,8.74602,3675.9,3675.8,0.0008]
[1717853361561,9.33415027,3675.9,3675.8,0.0008]
[1717853363578,9.38125455,3675.9,3675.8,0.0008]
[1717853363740,10.31938001,3675.9,3675.8,0.0008]
[1717853364468,20.02822501,3675.9,3675.8,0.0008]
[1717853364652,16.83775001,3675.9,3675.8,0.0008]
[1717853364853,16.79485701,3675.9,3675.8,0.0008]
[1717853365053,17.34485701,3675.9,3675.8,0.0008]
[1717853365580,16.44842801,3675.9,3675.8,0.0008]
[1717853366460,13.58980001,3675.9,3675.8,0.0008]
[1717853366668,26.28576301,3675.9,3675.8,0.0008]
[1717853366923,24.69774901,3675.9,3675.8,0.0008]
[1717853367122,21.97732901,3675.9,3674.1,0.727]
[1717853367291,2.72133,3674.7,3674.2,1.39285466]
[1717853367492,2.72133,3674.7,3674.2,1.61955161]
[1717853367814,3.0,3674.6,3674.2,1.61955161]
[1717853373102,2.72147,3674.5,3674.2,0.22669695]
[1717853373326,3.0,3674.4,3674.2,0.22669695]
[1717853373532,0.727,3674.5,3673.5,0.727]
[1717853373736,0.727,3674.5,3673.4,2.25536121]
[1717853373737,3.0,3674.6,3673.7,0.727]
[1717853374136,2.7216,3674.3,3673.7,0.727]
[1717853374441,3.0,3674.2,3673.8,0.22669695]
[1717853374745,3.0,3674.2,3673.7,0.727]
[1717853374969,3.0,3674.2,3673.9,0.22669695]
[1717853375111,3.0,3674.2,3673.7,0.727]
[1717853375313,3.0,3674.2,3674.0,0.22669695]
[1717853375555,3.0,3674.2,3673.6,1.39285466]
[1717853375864,3.0,3674.2,3674.1,0.22669695]
[1717853376021,3.0,3674.2,3673.7,0.22669695]
[1717853376356,3.0,3674.2,3673.6,1.39285466]
[1717853376556,3.0,3674.2,3673.8,0.22669695]
[1717853376760,3.0,3674.2,3673.6,1.39285466]
[1717853376914,3.0,3674.2,3673.9,0.22669695]
[1717853377112,3.0,3674.2,3673.6,1.39285466]
[1717853377363,3.0,3674.2,3674.0,0.22669695]
[1717853377545,3.0,3674.2,3673.9,2.367]
[1717853377846,3.0,3674.7,3674.1,0.727]
[1717853378157,3.0,3674.7,3674.0,0.22669695]
[1717853378158,2.72139,3674.6,3674.0,0.22669695]
[1717853378348,3.0,3674.5,3674.0,1.39285466]
[1717853378514,3.0,3674.5,3674.1,0.22669695]
[1717853379559,2.72154,3674.4,3674.1,0.22669695]
[1717853379789,3.0,3674.3,3674.1,0.22669695]
[1717853379924,3.0,3674.3,3673.5,0.727]
[1717853380262,3.0,3674.3,3673.6,1.61955161]
[1717853383567,2.72168,3674.2,3673.6,1.61955161]
[1717853383768,3.0,3674.1,3673.6,1.61955161]
[1717853384271,2.72185,3674.0,3673.6,0.22669695]
[1717853384440,3.0,3673.9,3673.4,2.25536121]
[1717853384640,3.0,3673.9,3673.7,0.22669695]
[1717853384859,3.0,3673.9,3673.4,2.25536121]
[1717853385063,3.0,3673.9,3673.8,0.22669695]
[1717853385251,3.0,3673.9,3673.4,2.25536121]
[1717853385460,3.0,3673.9,3673.8,0.22669695]
[1717853385699,2.722,3673.8,3673.4,2.25536121]
[1717853385939,2.722,3673.8,3673.5,0.22669695]
[1717853385940,3.0,3673.7,3673.5,0.22669695]
[1717853386182,2.72212,3673.6,3673.5,0.22669695]
[1717853386480,5.72212,3673.6,3673.5,0.22669695]
[1717853388159,8.05872,3673.6,3673.5,0.22669695]
[1717853388340,8.78572,3673.6,3673.5,0.22669695]
[1717853388882,8.78572,3673.6,3673.4,2.25536121]
[1717853389034,3.0,3673.5,3673.4,2.25536121]
[1717853390072,3.727,3673.5,3673.4,2.25536121]
[1717853390276,4.605572,3673.5,3673.4,2.25536121]
[1717853390677,3.878572,3673.5,3673.4,2.25536121]
[1717853390878,4.605572,3673.5,3673.4,2.25536121]
[1717853391080,3.878572,3673.5,3673.4,2.25536121]
[1717853392293,3.0,3673.5,3673.4,2.25536121]
[1717853399481,3.727,3673.5,3673.4,2.25536121]
[1717853400220,3.0,3673.5,3673.4,2.25536121]
[1717853403486,2.72213,3673.6,3673.4,2.25536121]
[1717853403931,3.0,3674.0,3673.4,2.98236121]
[1717853404088,3.0,3674.0,3673.4,4.37521587]
[1717853404566,3.0,3674.0,3673.5,1.39285466]
[1717853404833,2.72182,3674.1,3673.6,0.727]
[1717853405031,2.72182,3674.1,3673.8,0.727]
[1717853405215,2.72146,3674.5,3673.8,0.727]
[1717853405390,2.72146,3674.5,3673.8,2.11985466]
[1717853405588,2.72146,3674.5,3673.8,1.39285466]
[1717853405799,2.72146,3674.5,3673.9,0.727]
[1717853406000,2.72124,3674.8,3674.0,2.4934]
[1717853406188,2.72124,3674.8,3673.8,1.39285466]
[1717853406189,3.983644,3674.8,3673.8,1.39285466]
[1717853406410,2.72146,3674.5,3673.8,1.39285466]
[1717853407193,3.0,3674.4,3673.8,1.39285466]
[1717853407393,3.0,3674.4,3673.6,2.4934]
[1717853407624,3.0,3674.4,3673.8,1.39285466]
[1717853408193,3.0,3674.4,3673.9,0.727]
[1717853408812,3.0,3674.4,3673.8,1.39285466]
[1717853409006,2.72127,3674.8,3673.8,1.39285466]
[1717853409334,2.72127,3674.8,3673.6,2.4934]
[1717853409335,2.72145,3674.6,3673.6,2.4934]
[1717853409548,2.72157,3674.4,3673.4,2.25536121]
[1717853409690,2.72178,3674.1,3673.4,3.64821587]
[1717853409894,2.72193,3673.9,3673.4,2.25536121]
[1717853410224,0.27547506,3673.8,3673.4,2.25536121]
[1717853410634,3.31005393,3674.4,3673.4,2.98236121]
[1717853410842,3.0,3674.3,3673.4,4.37521587]
[1717853411000,3.0,3674.3,3673.6,3.2204]
[1717853411197,3.0,3674.3,3673.8,0.727]
[1717853411900,3.0,3674.3,3674.2,0.727]
[1717853412165,3.0,3674.8,3674.2,0.727]
[1717853412839,3.0,3674.8,3674.2,2.11985466]
[1717853413235,0.58836667,3675.2,3674.6,0.727]
[1717853413440,0.33092067,3675.2,3674.9,0.727]
[1717853413871,0.33092067,3675.2,3674.6,1.39285466]
[1717853414149,2.72084,3675.4,3674.6,1.39285466]
[1717853414385,2.72109,3675.0,3674.1,2.72174]
[1717853414584,2.72109,3675.0,3674.2,1.39285466]
[1717853414942,2.72077,3675.5,3674.2,1.39285466]
[1717853415145,3.514357,3675.4,3674.2,1.39285466]
[1717853415343,3.0,3675.4,3674.2,1.39285466]
[1717853415901,3.0,3675.4,3674.3,2.72155]
[1717853416106,3.0,3675.4,3674.4,1.39285466]
[1717853417009,3.0,3675.4,3674.5,2.4934]
[1717853417209,3.0,3675.4,3674.6,1.39285466]
[1717853417364,3.572077,3675.4,3674.6,1.39285466]
[1717853417880,3.572077,3675.4,3674.7,0.15852323]
[1717853418066,2.75372063,3675.3,3674.7,0.15852323]
[1717853418263,2.72105,3675.1,3674.0,2.4934]
[1717853418463,0.03282063,3675.0,3674.8,0.15286879]
[1717853418672,0.03282063,3675.0,3674.1,1.39285466]
[1717853418673,3.27538706,3675.0,3674.1,1.39285466]
[1717853418888,3.0,3675.0,3674.1,1.39285466]
[1717853419164,3.0,3675.0,3674.2,0.15286879]
[1717853419366,3.0,3675.0,3674.3,1.39285466]
[1717853419664,3.0,3675.0,3674.4,0.15325197]
[1717853420383,3.0,3675.0,3674.5,1.39285466]
[1717853420795,3.0,3675.0,3674.6,0.15325197]
[1717853420983,3.572105,3675.0,3674.6,0.15325197]
[1717853421302,3.572105,3675.0,3674.0,2.4934]
[1717853421516,0.03282063,3674.9,3674.7,0.15302794]
[1717853421818,0.03282063,3674.9,3674.8,0.15302794]
[1717853422165,0.03282063,3674.9,3674.1,1.39285466]
[1717853422366,0.03282063,3674.9,3674.2,0.15302794]
[1717853422567,0.86118756,3674.8,3674.2,1.5458826]
[1717853424894,2.75413063,3674.7,3674.2,0.15302794]
[1717853425243,0.86118756,3674.8,3673.5,2.3443]
[1717853425244,2.72147,3674.5,3673.5,2.3443]
[1717853425392,2.72147,3674.5,3674.3,0.15302794]
[1717853425739,2.72164,3674.3,3673.6,1.39285466]
[1717853425889,0.03282063,3674.2,3673.5,2.3443]
[1717853426090,0.03282063,3674.2,3673.7,0.15343477]
[1717853426333,2.72176,3674.1,3673.5,1.39285466]
[1717853426634,2.72176,3674.1,3673.4,2.25536121]
[1717853426941,2.72176,3674.1,3673.6,0.15343477]
[1717853427102,3.222526,3674.1,3673.4,2.25536121]
[1717853427306,3.222526,3674.1,3673.7,0.15343477]
[1717853427546,3.222526,3674.1,3673.4,2.25536121]
[1717853427692,3.222526,3674.1,3673.8,0.15421894]
[1717853427897,3.222526,3674.1,3673.4,2.25536121]
[1717853428098,3.222526,3674.1,3673.9,0.15421894]
[1717853428099,2.72176,3674.1,3673.9,0.15421894]
[1717853428300,2.72176,3674.1,3673.4,2.25536121]
[1717853428829,2.72176,3674.1,3673.5,0.15421894]
[1717853429394,2.72194,3673.9,3673.5,0.15421894]
[1717853431309,0.03282063,3673.8,3673.5,0.15421894]
[1717853431632,2.72194,3673.9,3673.5,0.15421894]
[1717853432001,0.03282063,3673.8,3673.5,0.15421894]
[1717853432406,2.72194,3673.9,3673.5,0.15421894]
[1717853434239,2.72159,3674.4,3673.6,1.39285466]
[1717853434443,3.0,3674.3,3673.6,1.39285466]
[1717853434677,2.72114,3675.0,3673.7,2.49870766]
[1717853434943,2.72114,3675.0,3673.8,1.39285466]
[1717853435447,2.72143,3674.6,3673.9,0.15440766]
[1717853435753,2.72153,3674.4,3673.9,0.15440766]
[1717853436052,2.7221,3673.7,3673.4,2.25536121]
[1717853436721,2.72173,3674.2,3673.4,2.25536121]
[1717853436938,3.0,3674.1,3673.4,2.25536121]
[1717853437110,2.72184,3674.0,3673.4,2.25536121]
[1717853440952,2.72216,3673.6,3673.4,2.25536121]
[1717853442555,2.72216,3673.6,3673.5,0.15434277]
[1717853445745,5.72216,3673.6,3673.5,0.15434277]
[1717853445942,5.72216,3673.6,3673.4,2.25536121]
[1717853446148,3.0,3673.5,3673.4,2.25536121]
[1717853447972,3.572216,3673.5,3673.4,2.25536121]
[1717853449701,3.0,3673.5,3673.4,2.25536121]
[1717853454438,3.0,3673.5,3673.4,2.41028206]
[1717853466615,3.728,3673.5,3673.4,2.41028206]
[1717853466835,4.31654306,3673.5,3673.4,2.25536121]
[1717853467000,5.26375337,3673.5,3673.4,2.25536121]
[1717853468123,4.53575337,3673.5,3673.4,2.25536121]
[1717853468427,3.58854306,3673.5,3673.4,2.25536121]
[1717853468608,3.0,3673.5,3673.4,2.40552134]
[1717853469899,2.72239,3673.3,3672.6,0.13352134]
[1717853470421,2.72264,3672.9,3672.6,0.13352134]
[1717853471222,2.72264,3672.9,3672.4,3.0962]
[1717853471591,2.72264,3672.9,3672.6,0.728]
[1717853471893,2.72264,3672.9,3672.4,2.3682]
[1717853472092,2.72264,3672.9,3672.5,0.728]
[1717853473125,2.72264,3672.9,3672.4,2.3682]
[1717853473328,2.72264,3672.9,3672.4,3.0962]
[1717853473629,2.72264,3672.9,3672.0,2.46294517]
[1717853473630,2.72284,3672.7,3672.0,2.46294517]
[1717853473834,2.72284,3672.7,3672.2,0.728]
[1717853474822,2.72284,3672.7,3672.4,0.728]
[1717853475333,2.72284,3672.7,3672.3,0.728]
[1717853476659,2.72284,3672.7,3672.0,0.00594517]
[1717853476808,2.72306,3672.4,3672.0,0.00594517]
[1717853477524,2.72306,3672.4,3672.1,0.14576117]
[1717853478334,2.72316,3672.2,3672.1,0.14576117]
[1717853478536,2.72316,3672.2,3671.7,0.098]
[1717853478750,2.72331,3672.0,3671.7,0.098]
[1717853478954,2.72331,3672.0,3671.9,0.10127413]
[1717853478955,8.48612769,3672.0,3671.9,0.10127413]
[1717853479125,9.35112769,3672.0,3671.7,0.098]
[1717853479325,3.58881769,3671.9,3671.7,0.098]
[1717853479568,4.71061499,3671.9,3671.7,0.098]
[1717853479867,3.98261499,3671.9,3671.7,0.098]
[1717853480084,3.98261499,3671.9,3670.2,5.48]
[1717853480284,3.98261499,3671.9,3670.1,2.72466]
[1717853480285,2.72387,3671.3,3670.3,1.39285466]
[1717853480493,2.72387,3671.3,3670.4,1.39285466]
[1717853480996,2.7235,3671.8,3670.6,2.2548]
[1717853481310,2.72363,3671.6,3670.7,1.42979805]
[1717853481583,3.0,3671.5,3670.7,1.42979805]
[1717853481958,3.0,3671.5,3670.7,0.13694339]
[1717853482551,3.0,3671.5,3670.7,1.52979805]
[1717853483173,3.0,3671.5,3670.8,1.39285466]
[1717853483549,3.0,3671.5,3670.9,0.13674351]
[1717853484191,3.0,3671.5,3670.6,2.2548]
[1717853484796,3.0,3671.5,3670.7,0.13676114]
[1717853485289,3.0,3671.5,3670.7,1.5296158]
[1717853485501,2.72386,3671.3,3670.7,0.13676114]
[1717853485950,3.0,3671.2,3670.0,7.82266509]
[1717853486152,3.0,3671.2,3669.2,3.0]
[1717853486153,2.2965,3670.1,3668.8,2.72564]
[1717853486374,2.72494,3669.8,3668.6,0.42671263]
[1717853486583,1.75,3669.9,3668.6,0.42671263]
[1717853486584,2.72562,3668.9,3668.6,0.42671263]
[1717853486792,0.03282063,3668.8,3667.3,2.72679]
[1717853487287,3.03282063,3668.8,3667.3,2.72679]
[1717853487519,2.2965,3666.0,3665.4,1.1360108]
[1717853487732,2.2965,3666.0,3663.9,1.94877242]
[1717853488024,2.72871,3664.8,3662.6,0.012]
[1717853488328,2.2965,3664.4,3662.6,0.012]
[1717853488476,3.0,3664.4,3662.6,0.012]
[1717853488686,0.03282063,3664.3,3662.8,2.2]
[1717853489019,2.72852,3665.0,3663.2,2.35917284]
[1717853489198,2.72852,3665.0,3663.3,0.23591728]
[1717853489528,3.0,3665.2,3663.7,1.75]
[1717853489677,0.22965,3665.9,3663.2,2.35917284]
[1717853489678,1.75,3664.3,3663.2,2.35917284]
[1717853489994,2.72831,3665.3,3663.2,2.35917284]
[1717853490194,2.72848,3665.1,3663.2,2.35917284]
[1717853490399,1.7299982,3665.0,3663.3,0.23591728]
[1717853490707,3.0,3665.0,3663.4,35.0]
[1717853491076,0.006,3665.7,3663.4,35.0]